[Event "69th RUS-ch Women Higher League 2019"]
[Site "Yaroslavl"]
[Date "2019.06.29"]
[Round "3.1"]
[White "Maltsevskaya, Aleksandra"]
[Black "Shuvalova, Polina"]
[Result "0-1"]
[ECO "A49"]
[WhiteElo "2316"]
[BlackElo "2418"]
[Annotator "NA"]
[PlyCount "82"]
[EventDate "2019.06.27"]
[EventType "swiss"]
[EventCountry "RUS"]
[SourceTitle "playchess.com"]
[Source "ChessBase"]
[SourceQuality "1"]
[TimeControl "40/5400+30:1800+30"]

1. Nf3 {[%emt 0:00:00]} Nf6 {[%emt 0:00:00]} 2. d4 {[%emt 0:00:00]} g6 {[%emt 0:00:51]} 3. g3 {[%emt 0:00:00]} Bg7 {[%emt 0:00:08]} 4. Bg2 {[%emt 0:00:00]} d5 {[%emt 0:00:11]} 5. O-O {[%emt 0:00:02]} c6 {[%emt 0:00:22]} 6. c4 {[%emt 0:00:24]} dxc4 {[%emt 0:00:39]} 7. Na3 {[%emt 0:00:57]} b5 {[%emt 0:02:43]} 8. Nc2 {[%emt 0:16:56]} Bb7 {[%emt 0:03:15]} 9. a4 {[%emt 0:03:51]} O-O {[%emt 0:02:39]} 10. Ne5 {[%emt 0:12:32]} Nd5 {[%emt 0:04:40]} 11. e4 {[%emt 0:02:34]} Nb6 {[%emt 0:05:39]} 12. a5 {[%emt 0:07:00]} N6d7 {[%emt 0:01:51]} 13. Ng4 {[%emt 0:15:39]} h5 {[%emt 0:07:43]} 14. Nge3 {[%emt 0:02:57]} e5 {[%emt 0:01:19]} 15. f4 {[%emt 0:01:10]} exd4 {[%emt 0:06:46]} 16. Nxd4 {[%emt 0:00:38]} Nc5 {[%emt 0:01:30]} 17. e5 {[%emt 0:00:10]} Qd7 {[%emt 0:01:13]} 18. Nec2 {[%emt 0:10:19]} Nba6 {[%emt 0:04:57]} 19. Qf3 {[%emt 0:01:44]} Rac8 {[%emt 0:12:26]} 20. Be3 {[%emt 0:02:34]} Ba8 {[%emt 0:05:27]} 21. f5 {[%emt 0:09:04]} Bxe5 {[%emt 0:03:39]} 22. g4 {[%emt 0:00:06]} Nd3 {[%emt 0:02:24]} 23. Qh3 {[%emt 0:02:37]} c5 {[%emt 0:05:18]} 24. Nf3 {[%emt 0:00:05]} hxg4 {[%emt 0:01:24]} 25. Qxg4 {[%emt 0:00:06]} Qxf5 {[%emt 0:03:33]} 26. Qxf5 {[%emt 0:00:09]} gxf5 {[%emt 0:00:06]} 27. Nxe5 {[%emt 0:00:09]} Bxg2 {[%emt 0:00:58]} 28. Kxg2 {[%emt 0:02:17]} Nxe5 {[%emt 0:00:04]} 29. Rxf5 {[%emt 0:00:07]} Rfe8 {[%emt 0:07:16]} 30. h4 {[%emt 0:02:47]} Ng6 {[%emt 0:05:20]} 31. Kh3 {[%emt 0:00:47]} Nb4 {[%emt 0:00:32]} 32. Rg1 {[%emt 0:02:34]} Nxc2 {[%emt 0:00:12]} 33. Bxc5 {[%emt 0:00:04]} Re1 {[%emt 0:04:16]} 34. Bxa7 {[%emt 0:05:49]} b4 {[%emt 0:02:38]} 35. h5 {[%emt 0:00:40]} Rxg1 {[%emt 0:01:59]} 36. Bxg1 {[%emt 0:00:04]} Ne7 {[%emt 0:02:16]} 37. Rb5 {[%emt 0:00:30]} c3 {[%emt 0:00:42]} 38. bxc3 {[%emt 0:00:07]} Rxc3+ {[%emt 0:00:21]} 39. Kg4 {[%emt 0:00:06]} Ra3 {[%emt 0:01:22]} 40. Kg5 {[%emt 0:00:00]} Rg3+ {[%emt 0:00:00]} 41. Kh6 {[%emt 0:02:22]} Kh8 {[%emt 0:02:46]} 0-1

[Event "69th RUS-ch Women Higher League 2019"]
[Site "Yaroslavl"]
[Date "2019.06.29"]
[Round "3.2"]
[White "Tomilova, Elena"]
[Black "Charochkina, Daria"]
[Result "1-0"]
[ECO "A04"]
[WhiteElo "2289"]
[BlackElo "2338"]
[Annotator "NA"]
[PlyCount "133"]
[EventDate "2019.06.27"]
[EventType "swiss"]
[EventCountry "RUS"]
[SourceTitle "playchess.com"]
[Source "ChessBase"]
[SourceQuality "1"]
[TimeControl "40/5400+30:1800+30"]

1. Nf3 {[%emt 0:00:00]} d6 {[%emt 0:00:53]} 2. g3 {[%emt 0:01:37]} e5 {[%emt 0:01:23]} 3. d3 {[%emt 0:00:17]} g6 {[%emt 0:00:23]} 4. Bg2 {[%emt 0:00:11]} Bg7 {[%emt 0:00:19]} 5. c4 {[%emt 0:00:17]} c5 {[%emt 0:11:22]} 6. Nc3 {[%emt 0:00:29]} Ne7 {[%emt 0:00:16]} 7. O-O {[%emt 0:05:55]} O-O {[%emt 0:00:16]} 8. a3 {[%emt 0:00:16]} Nbc6 {[%emt 0:00:48]} 9. Ne1 {[%emt 0:01:13]} Be6 {[%emt 0:01:30]} 10. Nd5 {[%emt 0:01:10]} Qd7 {[%emt 0:01:57]} 11. Rb1 {[%emt 0:00:56]} Bh3 {[%emt 0:06:56]} 12. b4 {[%emt 0:10:53]} Bxg2 {[%emt 0:29:35]} 13. Nxg2 {[%emt 0:00:29]} f5 {[%emt 0:01:10]} 14. Nxe7+ {[%emt 0:15:58]} Qxe7 {[%emt 0:02:45]} 15. Ne3 {[%emt 0:04:06]} Nd4 {[%emt 0:06:37]} 16. Nd5 {[%emt 0:00:39]} Qf7 {[%emt 0:00:15]} 17. bxc5 {[%emt 0:09:30]} dxc5 {[%emt 0:00:15]} 18. e3 {[%emt 0:00:21]} Ne6 {[%emt 0:00:44]} 19. f4 {[%emt 0:00:53]} Kh8 {[%emt 0:01:38]} 20. Bb2 {[%emt 0:07:44]} exf4 {[%emt 0:03:34]} 21. gxf4 {[%emt 0:00:52]} Rad8 {[%emt 0:02:17]} 22. Qb3 {[%emt 0:06:11]} b6 23. Bxg7+ {[%emt 0:00:53]} Kxg7 {[%emt 0:06:05]} 24. Qc3+ {[%emt 0:05:35]} Kg8 {[%emt 0:00:05]} 25. Qe5 {[%emt 0:04:46]} Rde8 {[%emt 0:01:10]} 26. Qd6 {[%emt 0:00:48]} Ng7 {[%emt 0:04:03]} 27. Rfe1 {[%emt 0:02:15]} Re6 {[%emt 0:02:28]} 28. Qc7 {[%emt 0:00:05]} Qxc7 {[%emt 0:00:18]} 29. Nxc7 {[%emt 0:00:01]} Rd6 {[%emt 0:00:10]} 30. Nd5 {[%emt 0:00:53]} Nh5 {[%emt 0:00:35]} 31. Rb3 {[%emt 0:02:24]} Re6 {[%emt 0:03:20]} 32. a4 {[%emt 0:01:28]} Nf6 {[%emt 0:02:13]} 33. Nxf6+ {[%emt 0:00:19]} Rfxf6 {[%emt 0:00:40]} 34. Kf2 {[%emt 0:00:42]} Rd6 {[%emt 0:01:20]} 35. h4 {[%emt 0:00:27]} h5 {[%emt 0:01:34]} 36. a5 bxa5 {[%emt 0:05:00]} 37. Ra1 {[%emt 0:01:10]} Rb6 {[%emt 0:01:06]} 38. Rb5 {[%emt 0:00:27]} Rxb5 {[%emt 0:01:25]} 39. cxb5 {[%emt 0:00:02]} Rb6 {[%emt 0:02:17]} 40. Rxa5 {[%emt 0:00:00]} Rb7 {[%emt 0:00:00]} 41. Ke2 {[%emt 0:03:58]} Kf7 {[%emt 0:04:37]} 42. Kd2 {[%emt 0:04:40]} Ke6 {[%emt 0:06:09]} 43. e4 {[%emt 0:02:11]} fxe4 {[%emt 0:03:35]} 44. dxe4 {[%emt 0:00:38]} Kf6 {[%emt 0:09:53]} 45. Kc3 {[%emt 0:03:38]} Rd7 {[%emt 0:03:08]} 46. Ra6+ {[%emt 0:00:49]} Kg7 {[%emt 0:00:32]} 47. e5 {[%emt 0:02:12]} Rb7 {[%emt 0:04:43]} 48. Kc4 {[%emt 0:01:27]} Kf7 {[%emt 0:00:21]} 49. Kxc5 {[%emt 0:01:00]} Rc7+ {[%emt 0:00:35]} 50. Rc6 {[%emt 0:03:49]} Rb7 {[%emt 0:00:40]} 51. Rf6+ {[%emt 0:03:22]} Kg7 {[%emt 0:00:04]} 52. Ra6 {[%emt 0:00:17]} Kf7 {[%emt 0:00:37]} 53. Kd6 {[%emt 0:06:29]} Kg7 {[%emt 0:00:37]} 54. Kc6 {[%emt 0:02:08]} Re7 {[%emt 0:00:25]} 55. Ra4 {[%emt 0:00:50]} Kf7 {[%emt 0:00:30]} 56. Rd4 {[%emt 0:00:44]} Ke8 {[%emt 0:00:26]} 57. Rd6 {[%emt 0:00:42]} Rg7 {[%emt 0:01:24]} 58. Kd5 {[%emt 0:02:07]} Rb7 {[%emt 0:01:00]} 59. Kc5 {[%emt 0:01:21]} Kf7 {[%emt 0:00:23]} 60. Ra6 {[%emt 0:01:33]} Rc7+ {[%emt 0:00:23]} 61. Kd6 {[%emt 0:00:21]} Rb7 {[%emt 0:00:23]} 62. b6 {[%emt 0:00:19]} axb6 {[%emt 0:00:56]} 63. e6+ {[%emt 0:00:08]} Kf6 {[%emt 0:00:49]} 64. Ra8 {[%emt 0:00:15]} Kf5 {[%emt 0:00:36]} 65. e7 {[%emt 0:00:23]} Rxe7 {[%emt 0:00:28]} 66. Kxe7 {[%emt 0:00:01]} b5 {[%emt 0:00:18]} 67. Rb8 {[%emt 0:00:30]} 1-0

[Event "69th RUS-ch Women Higher League 2019"]
[Site "Yaroslavl"]
[Date "2019.06.29"]
[Round "3.3"]
[White "Bodnaruk, Anastasia"]
[Black "Borisova, Ekaterina"]
[Result "1-0"]
[ECO "B85"]
[WhiteElo "2440"]
[BlackElo "2267"]
[Annotator "NA"]
[PlyCount "81"]
[EventDate "2019.06.27"]
[EventType "swiss"]
[EventCountry "RUS"]
[SourceTitle "playchess.com"]
[Source "ChessBase"]
[SourceQuality "1"]
[TimeControl "40/5400+30:1800+30"]

1. e4 {[%emt 0:00:00]} c5 {[%emt 0:00:00]} 2. Nf3 {[%emt 0:00:00]} d6 {[%emt 0:00:00]} 3. d4 {[%emt 0:00:00]} cxd4 {[%emt 0:00:00]} 4. Nxd4 {[%emt 0:00:00]} Nf6 {[%emt 0:00:00]} 5. Nc3 {[%emt 0:00:00]} a6 {[%emt 0:00:00]} 6. Be2 {[%emt 0:00:38]} e6 {[%emt 0:00:02]} 7. f4 {[%emt 0:00:38]} Nc6 {[%emt 0:01:55]} 8. Be3 {[%emt 0:01:29]} Be7 {[%emt 0:00:05]} 9. O-O {[%emt 0:01:32]} Qc7 {[%emt 0:00:10]} 10. Qe1 {[%emt 0:05:18]} O-O {[%emt 0:12:04]} 11. Kh1 {[%emt 0:01:26]} Re8 {[%emt 0:02:17]} 12. Qg3 {[%emt 0:02:12]} Rb8 {[%emt 0:12:52]} 13. Rae1 {[%emt 0:15:48]} b5 {[%emt 0:11:42]} 14. e5 {[%emt 0:02:54]} Nd5 {[%emt 0:04:29]} 15. Nxd5 {[%emt 0:27:32]} exd5 {[%emt 0:00:07]} 16. Nxc6 {[%emt 0:00:57]} Qxc6 {[%emt 0:00:08]} 17. Bd4 {[%emt 0:00:24]} Bf5 {[%emt 0:08:33]} 18. Bd3 {[%emt 0:03:53]} Bxd3 {[%emt 0:01:42]} 19. cxd3 {[%emt 0:00:18]} Bf8 {[%emt 0:02:38]} 20. f5 {[%emt 0:04:24]} Rb7 {[%emt 0:08:43]} 21. e6 {[%emt 0:06:07]} Qc8 {[%emt 0:03:56]} 22. Qf3 {[%emt 0:09:24]} Rc7 {[%emt 0:13:17]} 23. h3 {[%emt 0:03:24]} b4 {[%emt 0:01:46]} 24. Re2 {[%emt 0:01:00]} a5 {[%emt 0:01:29]} 25. Rfe1 {[%emt 0:02:00]} f6 {[%emt 0:01:07]} 26. Qxd5 {[%emt 0:00:43]} Be7 {[%emt 0:00:05]} 27. Qxa5 {[%emt 0:01:33]} Qb7 {[%emt 0:00:26]} 28. Qb6 {[%emt 0:01:02]} Qxb6 {[%emt 0:00:27]} 29. Bxb6 {[%emt 0:00:01]} Rb7 {[%emt 0:00:06]} 30. Be3 {[%emt 0:03:51]} Rb5 {[%emt 0:00:11]} 31. g4 {[%emt 0:00:21]} g6 {[%emt 0:00:09]} 32. Rf2 {[%emt 0:01:12]} Ra8 {[%emt 0:02:23]} 33. b3 {[%emt 0:00:12]} Re5 {[%emt 0:01:19]} 34. d4 {[%emt 0:03:10]} Re4 {[%emt 0:00:11]} 35. Kg2 {[%emt 0:00:54]} d5 {[%emt 0:01:48]} 36. Rc2 {[%emt 0:00:59]} h5 {[%emt 0:01:27]} 37. Kf3 {[%emt 0:01:06]} h4 {[%emt 0:02:13]} 38. Rc7 {[%emt 0:01:28]} Bd6 {[%emt 0:01:47]} 39. Rd7 {[%emt 0:00:16]} Bg3 {[%emt 0:00:15]} 40. Rc1 {[%emt 0:00:00]} gxf5 {[%emt 0:00:00]} 41. gxf5 {[%emt 0:03:21]} 1-0

[Event "69th RUS-ch Women Higher League 2019"]
[Site "Yaroslavl"]
[Date "2019.06.29"]
[Round "3.4"]
[White "Shafigullina, Zarina"]
[Black "Galliamova, Alisa"]
[Result "1-0"]
[ECO "A06"]
[WhiteElo "2240"]
[BlackElo "2444"]
[Annotator "NA RC"]
[PlyCount "108"]
[EventDate "2019.06.27"]
[EventType "swiss"]
[EventCountry "RUS"]
[SourceTitle "playchess.com"]
[Source "ChessBase"]
[SourceQuality "1"]
[TimeControl "40/5400+30:1800+30"]

1. Nf3 {[%emt 0:00:00]} d5 {[%emt 0:00:00]} 2. g3 {[%emt 0:00:00]} Nf6 {[%emt 0:00:50]} 3. Bg2 {[%emt 0:00:00]} c5 {[%emt 0:00:33]} 4. O-O {[%emt 0:00:19]} e6 {[%emt 0:00:28]} 5. d4 {[%emt 0:00:16]} b5 {[%emt 0:00:46]} 6. a4 {[%emt 0:03:55]} b4 {[%emt 0:00:10]} 7. c4 {[%emt 0:01:19]} Bb7 {[%emt 0:00:27]} 8. Ne5 {[%emt 0:00:42]} Qc7 {[%emt 0:09:32]} 9. cxd5 {[%emt 0:04:23]} Bxd5 {[%emt 0:17:25]} 10. Bxd5 {[%emt 0:01:02]} exd5 {[%emt 0:05:51]} 11. Bf4 {[%emt 0:06:31]} Bd6 {[%emt 0:02:32]} 12. Nd2 {[%emt 0:00:56]} O-O {[%emt 0:02:36]} 13. Rc1 {[%emt 0:02:08]} Nh5 {[%emt 0:12:47]} 14. e3 {[%emt 0:03:32]} Nxf4 {[%emt 0:01:45]} 15. gxf4 {[%emt 0:00:14]} f6 {[%emt 0:15:20]} 16. dxc5 {[%emt 0:11:50]} Bxe5 {[%emt 0:06:09]} 17. fxe5 {[%emt 0:00:05]} fxe5 {[%emt 0:01:20]} 18. Qb3 {[%emt 0:04:59]} Qd8 {[%emt 0:03:52]} 19. Ne4 {[%emt 0:08:19]} Nc6 {[%emt 0:01:16]} 20. Rcd1 {[%emt 0:04:00]} Ne7 {[%emt 0:00:14]} 21. Nd6 {[%emt 0:08:59]} Qd7 {[%emt 0:01:10]} 22. f3 {[%emt 0:12:09]} a5 {[%emt 0:09:11]} 23. e4 {[%emt 0:00:52]} Qc6 {[%emt 0:00:59]} 24. Rc1 {[%emt 0:00:05]} Kh8 {[%emt 0:00:36]} 25. Rfd1 {[%emt 0:00:33]} Qd7 {[%emt 0:02:19]} 26. exd5 {[%emt 0:02:17]} Qh3 {[%emt 0:00:27]} 27. Rf1 {[%emt 0:04:15]} Ng6 {[%emt 0:00:40]} 28. c6 {[%emt 0:03:45]} Nh4 {[%emt 0:00:34]} 29. Qc2 {[%emt 0:02:28]} Nxf3+ {[%emt 0:03:55]} 30. Rxf3 {[%emt 0:00:23]} Qxf3 {[%emt 0:00:15]} 31. c7 {[%emt 0:00:14]} Qe3+ {[%emt 0:00:47]} 32. Kh1 {[%emt 0:01:11]} h6 {[%emt 0:00:20]} 33. Nc4 {[%emt 0:05:48]} Qd4 {[%emt 0:00:46]} 34. Qd2 {[%emt 0:01:55]} Qe4+ {[%emt 0:00:29]} 35. Qg2 {[%emt 0:00:13]} Qf4 {[%emt 0:00:29]} 36. Rg1 {[%emt 0:00:48]} g5 {[%emt 0:00:33]} 37. Nb6 {[%emt 0:00:45]} Rae8 {[%emt 0:00:30]} 38. d6 {[%emt 0:02:24]} Qd4 {[%emt 0:00:23]} 39. Qc6 {[%emt 0:00:50]} Re6 {[%emt 0:00:43]} 40. c8=Q {[%emt 0:00:00]} Rxc8 {[%emt 0:00:00]} 41. Qxc8+ {[%emt 0:12:46]} Kg7 {[%emt 0:00:32]} 42. Qb7+ {[%emt 0:00:08]} Kg6 {[%emt 0:00:52]} 43. Nc8 {[%emt 0:03:52]} Rf6 {[%emt 0:16:00]} 44. Re1 {[%emt 0:02:13]} Kh5 {[%emt 0:01:53]} 45. Qg2 {[%emt 0:01:20]} g4 {[%emt 0:09:09]} 46. h3 {[%emt 0:01:28]} Rf4 {[%emt 0:00:24]} 47. Rg1 {[%emt 0:00:45]} Kg5 {[%emt 0:01:51]} 48. Qe2 {[%emt 0:02:10]} Qd5+ {[%emt 0:01:44]} 49. Kh2 {[%emt 0:00:07]} h5 {[%emt 0:00:29]} 50. Rg2 {[%emt 0:04:21]} Kf6 {[%emt 0:02:29]} 51. Qe1 {[%emt 0:02:23]} Ke6 {[%emt 0:00:28]} 52. Qh4 {[%emt 0:00:35]} Rf7 {[%emt 0:00:28]} 53. hxg4 {[%emt 0:01:25]} Qe4 {[%emt 0:00:12]} 54. Qh3 {[%emt 0:02:18]} Rf3 {[%emt 0:00:59]} 1-0

[Event "69th RUS-ch Women Higher League 2019"]
[Site "Yaroslavl"]
[Date "2019.06.29"]
[Round "3.6"]
[White "Gritsayeva, Oksana"]
[Black "Afonasieva, Anna"]
[Result "1-0"]
[ECO "B90"]
[WhiteElo "2381"]
[BlackElo "2303"]
[Annotator "NA"]
[PlyCount "99"]
[EventDate "2019.06.27"]
[EventType "swiss"]
[EventCountry "RUS"]
[SourceTitle "playchess.com"]
[Source "ChessBase"]
[SourceQuality "1"]
[TimeControl "40/5400+30:1800+30"]

1. e4 {[%emt 0:00:00]} c5 {[%emt 0:00:00]} 2. Nf3 {[%emt 0:00:00]} d6 {[%emt 0:00:00]} 3. d4 {[%emt 0:00:14]} cxd4 {[%emt 0:00:00]} 4. Nxd4 {[%emt 0:00:02]} Nf6 {[%emt 0:00:00]} 5. Nc3 {[%emt 0:00:04]} a6 {[%emt 0:00:00]} 6. Nb3 {[%emt 0:00:58]} e6 {[%emt 0:01:37]} 7. g4 {[%emt 0:02:14]} b5 {[%emt 0:01:27]} 8. Bg2 {[%emt 0:05:00]} Bb7 {[%emt 0:01:07]} 9. g5 {[%emt 0:01:13]} b4 {[%emt 0:06:58]} 10. Nd5 {[%emt 0:04:42]} exd5 {[%emt 0:09:28]} 11. gxf6 {[%emt 0:00:11]} dxe4 {[%emt 0:00:57]} 12. Qd4 {[%emt 0:27:02]} Qxf6 {[%emt 0:05:53]} 13. Qxb4 {[%emt 0:05:22]} e3 {[%emt 0:06:42]} 14. O-O {[%emt 0:00:32]} Bxg2 {[%emt 0:01:13]} 15. Kxg2 {[%emt 0:00:06]} Qg5+ {[%emt 0:03:21]} 16. Kf3 {[%emt 0:06:34]} Qf5+ {[%emt 0:20:04]} 17. Kxe3 {[%emt 0:01:21]} d5 {[%emt 0:02:21]} 18. Qa4+ {[%emt 0:02:32]} Nd7 {[%emt 0:01:07]} 19. Kd2 {[%emt 0:11:58]} Be7 {[%emt 0:18:24]} 20. Nd4 {[%emt 0:01:48]} Qf4+ {[%emt 0:07:45]} 21. Kd1 {[%emt 0:00:27]} Qh4 {[%emt 0:04:08]} 22. c3 {[%emt 0:00:54]} Rd8 {[%emt 0:01:59]} 23. Qxa6 {[%emt 0:02:18]} O-O {[%emt 0:00:39]} 24. Qe2 {[%emt 0:00:40]} Bf6 {[%emt 0:00:41]} 25. Be3 {[%emt 0:01:12]} Ne5 {[%emt 0:01:06]} 26. b3 {[%emt 0:04:13]} Rc8 {[%emt 0:01:50]} 27. Rc1 {[%emt 0:02:41]} Qxh2 {[%emt 0:02:14]} 28. f4 {[%emt 0:07:35]} Qxe2+ {[%emt 0:00:06]} 29. Kxe2 {[%emt 0:00:05]} Ng4 {[%emt 0:00:33]} 30. Bg1 {[%emt 0:01:22]} h5 {[%emt 0:00:12]} 31. Kd3 {[%emt 0:01:40]} Rc7 {[%emt 0:02:31]} 32. a4 {[%emt 0:00:35]} g5 {[%emt 0:00:44]} 33. Rc2 {[%emt 0:02:18]} gxf4 {[%emt 0:00:45]} 34. Rxf4 {[%emt 0:00:11]} Re8 {[%emt 0:00:33]} 35. Rg2 {[%emt 0:01:12]} Bg5 {[%emt 0:00:19]} 36. Rf5 {[%emt 0:01:03]} f6 {[%emt 0:00:27]} 37. Nf3 {[%emt 0:02:30]} Rec8 {[%emt 0:00:30]} 38. Bd4 {[%emt 0:00:22]} Be3 {[%emt 0:00:26]} 39. Rxh5 {[%emt 0:00:54]} Rg7 {[%emt 0:00:45]} 40. Rxg4 {[%emt 0:00:00]} Rxg4 {[%emt 0:00:00]} 41. Kxe3 {[%emt 0:01:54]} Kf7 {[%emt 0:03:04]} 42. Rxd5 {[%emt 0:02:54]} Re8+ {[%emt 0:02:13]} 43. Kf2 {[%emt 0:00:32]} Rge4 {[%emt 0:01:01]} 44. Rf5 {[%emt 0:01:25]} Kg7 {[%emt 0:01:02]} 45. a5 {[%emt 0:01:07]} Re2+ {[%emt 0:00:21]} 46. Kg3 {[%emt 0:00:19]} R8e6 {[%emt 0:00:27]} 47. b4 {[%emt 0:00:50]} Ra2 {[%emt 0:00:36]} 48. Rb5 {[%emt 0:00:50]} Ree2 {[%emt 0:00:53]} 49. Rb6 {[%emt 0:01:20]} Rg2+ {[%emt 0:00:23]} 50. Kf4 {[%emt 0:00:17]} 1-0

[Event "69th RUS-ch Women Higher League 2019"]
[Site "Yaroslavl"]
[Date "2019.06.29"]
[Round "3.7"]
[White "Goltseva, Ekaterina"]
[Black "Guseva, Marina"]
[Result "0-1"]
[ECO "E12"]
[WhiteElo "2304"]
[BlackElo "2379"]
[Annotator "NA"]
[PlyCount "48"]
[EventDate "2019.06.27"]
[EventType "swiss"]
[EventCountry "RUS"]
[SourceTitle "playchess.com"]
[Source "ChessBase"]
[SourceQuality "1"]
[TimeControl "40/5400+30:1800+30"]

1. d4 {[%emt 0:00:00]} Nf6 {[%emt 0:00:00]} 2. c4 {[%emt 0:00:00]} e6 {[%emt 0:00:00]} 3. Nf3 {[%emt 0:00:06]} b6 {[%emt 0:00:00]} 4. a3 {[%emt 0:00:20]} Bb7 {[%emt 0:00:05]} 5. Nc3 {[%emt 0:00:39]} d5 {[%emt 0:00:05]} 6. cxd5 {[%emt 0:02:08]} Nxd5 {[%emt 0:00:07]} 7. Qc2 {[%emt 0:01:04]} Nxc3 {[%emt 0:02:02]} 8. bxc3 {[%emt 0:00:36]} Be7 {[%emt 0:00:04]} 9. e4 {[%emt 0:02:09]} O-O {[%emt 0:01:04]} 10. Bd3 {[%emt 0:01:49]} c5 {[%emt 0:00:05]} 11. O-O {[%emt 0:01:00]} Nd7 {[%emt 0:02:49]} 12. Rd1 {[%emt 0:08:02]} Qc7 {[%emt 0:04:45]} 13. Qe2 {[%emt 0:04:43]} Rfd8 {[%emt 0:18:57]} 14. Be3 {[%emt 0:25:22]} Rac8 {[%emt 0:05:28]} 15. a4 {[%emt 0:18:49]} h6 {[%emt 0:25:32]} 16. h3 {[%emt 0:05:00]} Nf6 {[%emt 0:04:33]} 17. Bd2 {[%emt 0:02:40]} Bc6 {[%emt 0:04:50]} 18. e5 {[%emt 0:06:10]} Nd7 {[%emt 0:01:47]} 19. Nh2 {[%emt 0:00:49]} cxd4 {[%emt 0:03:37]} 20. cxd4 {[%emt 0:00:27]} Nf8 {[%emt 0:00:12]} 21. Be3 {[%emt 0:03:23]} Qd7 {[%emt 0:10:08]} 22. Qh5 {[%emt 0:11:30]} Qd5 {[%emt 0:03:16]} 23. f3 {[%emt 0:01:42]} f5 {[%emt 0:00:11]} 24. g4 {[%emt 0:01:17]} Be8 {[%emt 0:00:17]} 0-1

[Event "69th RUS-ch Women Higher League 2019"]
[Site "Yaroslavl"]
[Date "2019.06.29"]
[Round "3.8"]
[White "Ovod, Evgenija"]
[Black "Dordzhieva, Dinara"]
[Result "0-1"]
[ECO "B20"]
[WhiteElo "2361"]
[BlackElo "2306"]
[Annotator "NA"]
[PlyCount "90"]
[EventDate "2019.06.27"]
[EventType "swiss"]
[EventCountry "RUS"]
[SourceTitle "playchess.com"]
[Source "ChessBase"]
[SourceQuality "1"]
[TimeControl "40/5400+30:1800+30"]

1. e4 {[%emt 0:00:00]} c5 {[%emt 0:00:20]} 2. Ne2 {[%emt 0:00:00]} d6 {[%emt 0:00:43]} 3. g3 {[%emt 0:00:00]} g6 {[%emt 0:00:05]} 4. Bg2 {[%emt 0:00:00]} Bg7 {[%emt 0:00:05]} 5. c3 {[%emt 0:00:08]} Nc6 {[%emt 0:02:40]} 6. d4 {[%emt 0:00:09]} Nf6 {[%emt 0:03:54]} 7. O-O {[%emt 0:06:09]} O-O {[%emt 0:00:38]} 8. h3 {[%emt 0:24:58]} e5 {[%emt 0:08:23]} 9. Be3 {[%emt 0:00:09]} Qe7 {[%emt 0:06:54]} 10. Nd2 {[%emt 0:06:29]} cxd4 {[%emt 0:14:29]} 11. cxd4 {[%emt 0:00:04]} exd4 {[%emt 0:00:03]} 12. Nxd4 {[%emt 0:00:09]} Bd7 {[%emt 0:00:01]} 13. Nb5 {[%emt 0:08:26]} Ne5 {[%emt 0:17:26]} 14. Qe2 {[%emt 0:02:49]} a6 {[%emt 0:04:59]} 15. Nc3 {[%emt 0:00:09]} Bc6 {[%emt 0:00:58]} 16. a4 {[%emt 0:02:08]} Rac8 {[%emt 0:03:12]} 17. Rfc1 {[%emt 0:19:52]} Rfe8 {[%emt 0:08:00]} 18. b4 {[%emt 0:00:37]} Bd7 {[%emt 0:01:22]} 19. b5 {[%emt 0:01:27]} axb5 {[%emt 0:03:20]} 20. axb5 {[%emt 0:00:17]} Be6 {[%emt 0:00:56]} 21. Ra7 {[%emt 0:14:06]} d5 {[%emt 0:12:09]} 22. f4 {[%emt 0:00:19]} Nc4 {[%emt 0:00:18]} 23. e5 {[%emt 0:02:11]} Nh5 {[%emt 0:02:28]} 24. Bf2 {[%emt 0:04:48]} Qb4 25. Nxc4 Rxc4 {[%emt 0:05:21]} 26. Ra4 {[%emt 0:04:07]} Qxa4 {[%emt 0:00:33]} 27. Nxa4 {[%emt 0:00:03]} Rxc1+ {[%emt 0:00:03]} 28. Kh2 {[%emt 0:02:12]} Rec8 {[%emt 0:01:20]} 29. Qf3 {[%emt 0:01:26]} R1c2 {[%emt 0:03:15]} 30. Be1 R8c4 31. Qd1 {[%emt 0:01:38]} d4 {[%emt 0:01:01]} 32. Nb6 Rc1 {[%emt 0:00:13]} 33. Qd2 {[%emt 0:01:07]} R4c2 {[%emt 0:00:03]} 34. Qa5 {[%emt 0:00:08]} Rb2 {[%emt 0:00:39]} 35. Bb4 {[%emt 0:00:39]} Ra2 36. Na4 {[%emt 0:00:32]} h6 {[%emt 0:01:15]} 37. Qd8+ {[%emt 0:00:39]} Kh7 {[%emt 0:00:02]} 38. Qxd4 {[%emt 0:00:23]} Rcc2 {[%emt 0:00:53]} 39. Qe4 {[%emt 0:00:19]} Bf5 {[%emt 0:00:08]} 40. Qxb7 {[%emt 0:00:00]} Rxa4 {[%emt 0:00:00]} 41. g4 {[%emt 0:06:15]} Nxf4 {[%emt 0:01:29]} 42. Kg3 {[%emt 0:00:06]} Rxg2+ {[%emt 0:01:02]} 43. Kxf4 {[%emt 0:00:32]} Rxb4+ {[%emt 0:00:07]} 44. Ke3 {[%emt 0:00:35]} Rg3+ {[%emt 0:00:07]} 45. Kf2 {[%emt 0:01:49]} Ra3 {[%emt 0:00:04]} 0-1

[Event "69th RUS-ch Women Higher League 2019"]
[Site "Yaroslavl"]
[Date "2019.06.29"]
[Round "3.9"]
[White "Markelova, Lubov"]
[Black "Ambartsumova, Karina"]
[Result "1/2-1/2"]
[ECO "A09"]
[WhiteElo "2186"]
[BlackElo "2359"]
[Annotator "NA"]
[PlyCount "83"]
[EventDate "2019.06.27"]
[EventType "swiss"]
[EventCountry "RUS"]
[SourceTitle "playchess.com"]
[Source "ChessBase"]
[SourceQuality "1"]
[TimeControl "40/5400+30:1800+30"]

1. Nf3 {[%emt 0:00:00]} d5 {[%emt 0:00:15]} 2. c4 {[%emt 0:00:37]} d4 {[%emt 0:03:56]} 3. g3 {[%emt 0:03:59]} c5 {[%emt 0:02:24]} 4. Bg2 {[%emt 0:00:37]} Nc6 {[%emt 0:02:02]} 5. O-O {[%emt 0:02:32]} Nf6 {[%emt 0:02:14]} 6. e3 {[%emt 0:05:14]} Bg4 {[%emt 0:14:53]} 7. Qb3 {[%emt 0:19:17]} Qd7 {[%emt 0:12:45]} 8. d3 {[%emt 0:03:54]} e5 {[%emt 0:15:45]} 9. exd4 {[%emt 0:23:43]} Bxf3 {[%emt 0:01:37]} 10. Bxf3 {[%emt 0:00:04]} Nxd4 {[%emt 0:00:03]} 11. Qd1 {[%emt 0:00:06]} Nxf3+ {[%emt 0:05:13]} 12. Qxf3 {[%emt 0:00:07]} O-O-O {[%emt 0:00:06]} 13. Be3 {[%emt 0:11:31]} Qxd3 {[%emt 0:00:46]} 14. Nc3 {[%emt 0:00:50]} Qxc4 {[%emt 0:08:26]} 15. Rac1 {[%emt 0:08:18]} Kb8 {[%emt 0:01:23]} 16. Rfe1 {[%emt 0:03:22]} h6 {[%emt 0:09:56]} 17. a4 {[%emt 0:03:14]} Bd6 {[%emt 0:05:35]} 18. Nb5 {[%emt 0:05:45]} Qg4 {[%emt 0:06:32]} 19. Qg2 {[%emt 0:01:42]} Qe4 {[%emt 0:00:40]} 20. Qf1 {[%emt 0:02:17]} Qc6 {[%emt 0:01:07]} 21. Nxd6 {[%emt 0:01:13]} Qxd6 {[%emt 0:00:09]} 22. Bxc5 {[%emt 0:00:25]} Qe6 {[%emt 0:01:00]} 23. Qe2 {[%emt 0:01:08]} Rd5 {[%emt 0:01:37]} 24. b4 {[%emt 0:01:21]} Nd7 {[%emt 0:02:34]} 25. Be3 {[%emt 0:00:38]} f5 {[%emt 0:00:38]} 26. Qc4 {[%emt 0:00:30]} Qd6 {[%emt 0:00:20]} 27. a5 {[%emt 0:00:33]} a6 28. Bc5 {[%emt 0:00:30]} Qc6 {[%emt 0:01:09]} 29. Be3 {[%emt 0:00:31]} Qxc4 {[%emt 0:00:13]} 30. Rxc4 {[%emt 0:00:04]} Nf6 {[%emt 0:00:45]} 31. Bb6 {[%emt 0:00:55]} e4 {[%emt 0:00:38]} 32. Rec1 {[%emt 0:00:29]} Nd7 {[%emt 0:00:46]} 33. Bc7+ {[%emt 0:00:29]} Ka8 {[%emt 0:00:22]} 34. Bf4 {[%emt 0:00:07]} Nb8 {[%emt 0:00:15]} 35. Rc8 {[%emt 0:00:55]} Rdd8 {[%emt 0:00:32]} 36. R8c7 {[%emt 0:00:30]} Rd7 {[%emt 0:00:39]} 37. Rc8 {[%emt 0:00:17]} Rdd8 {[%emt 0:00:03]} 38. R8c7 {[%emt 0:00:06]} g5 {[%emt 0:00:54]} 39. Be3 {[%emt 0:00:48]} Rd7 {[%emt 0:00:25]} 40. Rc8 {[%emt 0:00:00]} Rdd8 {[%emt 0:00:00]} 41. R8c7 {[%emt 0:01:29]} Rd7 {[%emt 0:11:59]} 42. Rc8 {[%emt 0:09:08]} 1/2-1/2